fUSD/lending_fUSD_20260107
["ID","MTS","AMOUNT","RATE_DAILY","PERIOD"]
[400749935,1767813032957,-1699.09745546,0.00014411,2]
[400749937,1767813032966,-195.0,0.00014412,2]
[400749938,1767813032975,-4176.33720021,0.00014412,2]
[400749939,1767813032986,-9008.14540346,0.00014412,2]
[400749940,1767813033005,-909.49958928,0.00014412,2]
[400749941,1767813037495,1000.0,0.0001378,2]
[400749943,1767813037891,-1282.2401957,0.00014412,2]
[400749944,1767813037904,-352.13699852,0.00014412,2]
[400749945,1767813037963,-5297.46350509,0.00014412,2]
[400749946,1767813037976,-2553.92929417,0.00014412,2]
[400749947,1767813037992,-4354.3074575,0.00014412,2]
[400749948,1767813038007,-299.96265246,0.00014412,2]
[400749949,1767813038043,-499.092,0.00014412,2]
[400749950,1767813038055,-858374.62272184,0.00014412,2]
[400749951,1767813038064,-1455.64956121,0.00014479,2]
[400749952,1767813038074,-151.0,0.00014486,2]
[400749953,1767813038084,-154.0,0.00014488,2]
[400749954,1767813038093,-338.7228,0.00014489,2]
[400749955,1767813038103,-1000000.0,0.00014489,2]
[400749956,1767813038113,-1744.72667084,0.00014516,2]
[400749957,1767813038123,-37991.76115968,0.00014589,2]
[400749958,1767813038132,-275.21866833,0.00014635,2]
[400749959,1767813038142,-1508.93,0.00014635,2]
[400749960,1767813038152,-500.0,0.00014635,2]
[400749961,1767813038166,-1280.0,0.00014635,2]
[400749962,1767813038176,-500.0,0.00014635,2]
[400749963,1767813038186,-716.0,0.00014635,2]
[400749964,1767813038195,-500.0,0.00014635,2]
[400749965,1767813038205,-500.0,0.00014635,2]
[400749966,1767813038215,-179.16326783,0.00014635,2]
[400749968,1767813038224,-500.0,0.00014635,2]
[400749970,1767813038233,-163.21927954,0.00014645,2]
[400749972,1767813038242,-163.21927954,0.00014645,2]
[400749974,1767813038251,-163.21927954,0.00014645,2]
[400749976,1767813038260,-355.34091752,0.00014645,2]
[400749977,1767813038269,-151.0,0.00014645,2]
[400749979,1767813038279,-161.6509,0.00014658,2]
[400749981,1767813038288,-403.4,0.00014663,2]
[400749983,1767813038297,-500.0,0.00014685,2]
[400749985,1767813038307,-9999.99,0.00014685,2]
[400749987,1767813038317,-150.99,0.00014685,2]
[400749989,1767813038326,-39625.10172944,0.00014686,2]
[400749991,1767813038336,-9999.99,0.00014686,2]
[400749993,1767813038347,-999.99,0.00014686,2]
[400749995,1767813038356,-634.29540262,0.00014689,2]
[400749997,1767813038366,-500.0,0.0001469,2]
[400749999,1767813038376,-1280.0,0.0001469,2]
[400750001,1767813038386,-500.0,0.0001469,2]
[400750003,1767813038395,-716.0,0.0001469,2]
[400750005,1767813038409,-500.0,0.0001469,2]
[400750007,1767813038419,-500.0,0.0001469,2]
[400750009,1767813038429,-500.0,0.0001469,2]
[400750011,1767813038439,-787.35487633,0.00014728,2]
[400750013,1767813038448,-18612.76681066,0.00014744,2]
[400750015,1767813038459,-500.0,0.00014745,2]
[400750017,1767813038469,-1280.0,0.00014745,2]
[400750019,1767813038479,-716.0,0.00014745,2]
[400750021,1767813038488,-500.0,0.00014745,2]
[400750023,1767813038498,-500.0,0.00014745,2]
[400750025,1767813038507,-500.0,0.00014745,2]
[400750027,1767813038517,-500.0,0.00014745,2]
[400750029,1767813038526,-151.0,0.0001478,2]
[400750031,1767813038536,-151.0,0.0001478,2]
[400750033,1767813038545,-151.0,0.0001478,2]
[400750035,1767813038555,-151.0,0.0001478,2]
[400750036,1767813038565,-500.0,0.0001478,2]
[400750038,1767813038575,-284.8162209,0.0001478,2]
[400750040,1767813038584,-500.0,0.0001478,2]
[400750042,1767813038593,-302.59029446,0.0001478,2]
[400750044,1767813038603,-218.65304711,0.0001478,2]
[400750046,1767813038612,-500.0,0.0001478,2]
[400750048,1767813038622,-200.0,0.0001478,2]
[400750050,1767813038632,-151.0,0.0001478,2]
[400750051,1767813038641,-151.0,0.0001478,2]
[400750053,1767813038651,-151.0,0.0001478,2]
[400750055,1767813038661,-151.0,0.0001478,2]
[400750057,1767813038671,-151.0,0.0001478,2]
[400750059,1767813038680,-151.0,0.0001478,2]
[400750061,1767813038689,-151.0,0.0001478,2]
[400750063,1767813038698,-151.0,0.0001478,2]
[400750065,1767813038708,-151.0,0.0001478,2]
[400750067,1767813038717,-151.0,0.0001478,2]
[400750069,1767813038726,-151.0,0.0001478,2]
[400750071,1767813038736,-500.0,0.00014788,2]
[400750073,1767813038745,-500.0,0.00014788,2]
[400750075,1767813038754,-500.0,0.00014788,2]
[400750077,1767813038764,-500.0,0.00014788,2]
[400750079,1767813038773,-500.0,0.00014788,2]
[400750081,1767813038782,-581.02591241,0.00014788,2]
[400750083,1767813038792,-500.0,0.00014788,2]
[400750085,1767813038801,-500.0,0.00014788,2]
[400750087,1767813038810,-500.0,0.00014788,2]
[400750089,1767813038820,-557.92597978,0.00014788,2]
[400750091,1767813038829,-500.0,0.00014788,2]
[400750093,1767813038838,-500.0,0.00014788,2]
[400750095,1767813038847,-500.0,0.00014788,2]
[400750097,1767813038857,-500.0,0.00014788,2]
[400750099,1767813038866,-500.0,0.00014788,2]
[400750101,1767813038875,-500.0,0.00014788,2]
[400750103,1767813038884,-500.0,0.00014788,2]
[400750105,1767813038894,-500.0,0.00014788,2]
[400750107,1767813038904,-500.0,0.00014788,2]
[400750109,1767813038913,-500.0,0.00014788,2]
[400750111,1767813038923,-500.0,0.00014788,2]
[400750113,1767813038932,-500.0,0.00014788,2]
[400750115,1767813038942,-500.0,0.00014788,2]
[400750117,1767813038951,-509.86932533,0.00014788,2]
[400750119,1767813038962,-500.0,0.00014788,2]
[400750121,1767813038972,-500.0,0.00014788,2]
[400750123,1767813038981,-529.68631152,0.00014788,2]
[400750125,1767813038990,-500.0,0.00014788,2]
[400750127,1767813039000,-523.12649514,0.00014788,2]
[400750129,1767813039009,-500.0,0.00014788,2]
[400750131,1767813039019,-500.0,0.00014788,2]
[400750133,1767813039028,-509.41321763,0.00014788,2]
[400750135,1767813039039,-1000.0,0.00014789,2]
[400750137,1767813039048,-13822.5812,0.00014789,2]
[400750139,1767813039057,-500.0,0.00014799,2]
[400750141,1767813039066,-1280.0,0.00014799,2]
[400750143,1767813039076,-716.0,0.00014799,2]
[400750145,1767813039085,-500.0,0.00014799,2]
[400750147,1767813039094,-500.0,0.00014799,2]
[400750148,1767813039103,-500.0,0.00014799,2]
[400750150,1767813039113,-500.0,0.00014799,2]
[400750152,1767813039122,-132097.83151621,0.00014826,2]
[400750155,1767813039131,-2619.69,0.00014828,2]
[400750156,1767813039140,-500.0,0.00014838,2]
[400750158,1767813039150,-615.06492354,0.00014838,2]
[400750160,1767813039160,-500.0,0.00014838,2]
[400750162,1767813039170,-262.00155402,0.00014838,2]
[400750164,1767813039179,-500.0,0.00014838,2]
[400750166,1767813039188,-500.0,0.00014838,2]
[400750168,1767813039198,-500.0,0.00014854,2]
[400750170,1767813039207,-1280.0,0.00014854,2]
[400750172,1767813039216,-716.0,0.00014854,2]
[400750174,1767813039225,-500.0,0.00014854,2]
[400750176,1767813039234,-500.0,0.00014854,2]
[400750178,1767813039243,-500.0,0.00014854,2]
[400750180,1767813039253,-500.0,0.00014854,2]
[400750182,1767813039262,-1177.31804481,0.00014857,2]
[400750184,1767813039272,-335.1109073,0.00014909,2]
[400750186,1767813039282,-1280.0,0.00014909,2]
[400750188,1767813039291,-716.0,0.00014909,2]
[400750190,1767813039300,-500.0,0.00014909,2]
[400750192,1767813039310,-500.0,0.00014909,2]
[400750194,1767813039320,-500.0,0.00014909,2]
[400750196,1767813039329,-500.0,0.00014909,2]
[400750198,1767813039338,-1508.93,0.00014909,2]
[400750200,1767813039347,-545.46,0.00014957,2]
[400750202,1767813039356,-500.0,0.00014959,2]
[400750204,1767813039366,-1280.0,0.00014964,2]
[400750206,1767813039377,-716.0,0.00014964,2]
[400750208,1767813039386,-500.0,0.00014964,2]
[400750210,1767813039395,-500.0,0.00014964,2]
[400750212,1767813039407,-500.0,0.00014964,2]
[400750214,1767813039418,-500.0,0.00014964,2]
[400750216,1767813039427,-1000.0,0.00014998,2]
[400750218,1767813039437,-23771.06566607,0.00015,2]
[400750220,1767813039447,-1280.0,0.00015019,2]
[400750222,1767813039457,-716.0,0.00015019,2]
[400750224,1767813039466,-500.0,0.00015019,2]
[400750226,1767813039476,-500.0,0.00015019,2]
[400750228,1767813039491,-500.0,0.00015019,2]
[400750230,1767813039499,-500.0,0.00015019,2]
[400750232,1767813039509,-7918.74106503,0.00015042,2]
[400750233,1767813039518,-500.0,0.00015068,2]
[400750235,1767813039527,-857.95,0.00015068,2]
[400750237,1767813039536,-500.0,0.00015073,2]
[400750239,1767813039547,-500.0,0.00015073,2]
[400750241,1767813039556,-500.0,0.00015073,2]
[400750243,1767813039566,-161.8794398,0.00015073,2]
[400750245,1767813039575,-169.74559645,0.00015073,2]
[400750247,1767813039584,-173.18700714,0.00015073,2]
[400750249,1767813039594,-164.10183588,0.00015073,2]
[400750251,1767813039603,-500.0,0.00015073,2]
[400750253,1767813039612,-500.0,0.00015073,2]
[400750255,1767813039621,-224.66209336,0.00015073,2]
[400750257,1767813039630,-500.0,0.00015073,2]
[400750259,1767813039642,-500.0,0.00015073,2]
[400750261,1767813039651,-500.0,0.00015073,2]
[400750263,1767813039665,-500.0,0.00015073,2]
[400750265,1767813039675,-500.0,0.00015073,2]
[400750267,1767813039684,-500.0,0.00015073,2]
[400750269,1767813039693,-552.50710843,0.00015073,2]
[400750271,1767813039703,-500.0,0.00015073,2]
[400750273,1767813039712,-500.0,0.00015073,2]
[400750275,1767813039724,-536.66734105,0.00015073,2]
[400750277,1767813039733,-538.59757642,0.00015073,2]
[400750279,1767813039743,-500.0,0.00015073,2]
[400750281,1767813039752,-500.0,0.00015073,2]
[400750283,1767813039761,-167.52483751,0.00015073,2]
[400750285,1767813039770,-175.21486475,0.00015073,2]
[400750287,1767813039779,-500.0,0.00015073,2]
[400750289,1767813039788,-500.0,0.00015073,2]
[400750291,1767813039798,-500.0,0.00015073,2]
[400750293,1767813039806,-500.0,0.00015073,2]
[400750295,1767813039816,-500.0,0.00015073,2]
[400750297,1767813039825,-500.0,0.00015073,2]
[400750299,1767813039834,-500.0,0.00015073,2]
[400750301,1767813039843,-500.0,0.00015073,2]
[400750303,1767813039852,-500.0,0.00015073,2]
[400750305,1767813039862,-500.0,0.00015073,2]
[400750307,1767813039872,-500.0,0.00015073,2]
[400750309,1767813039881,-500.0,0.00015073,2]
[400750310,1767813039891,-500.0,0.00015073,2]
[400750312,1767813039900,-500.0,0.00015073,2]
[400750314,1767813039909,-166.24303816,0.00015073,2]
[400750316,1767813039919,-468.16894529,0.00015073,2]
[400750318,1767813039928,-163.2920989,0.00015073,2]
[400750320,1767813039937,-237.23316124,0.00015073,2]
[400750322,1767813039946,-331.79442927,0.00015073,2]
[400750324,1767813039956,-1280.0,0.00015073,2]
[400750326,1767813039965,-716.0,0.00015073,2]
[400750328,1767813039975,-517.05568559,0.00015073,2]
[400750330,1767813039984,-500.0,0.00015073,2]
[400750332,1767813039993,-500.0,0.00015073,2]
[400750363,1767813040284,-500.0,0.00015073,2]
[400750366,1767813040301,-1744.72667082,0.0001508,2]
[400750368,1767813040310,-500.0,0.00015123,2]
[400750370,1767813040321,-500.0,0.00015128,2]
[400750372,1767813040330,-500.0,0.00015128,2]
[400750374,1767813040339,-500.0,0.00015128,2]
[400750376,1767813040348,-500.0,0.00015128,2]
[400750378,1767813040357,-534.92861577,0.00015128,2]
[400750380,1767813040366,-500.0,0.00015128,2]
[400750382,1767813040375,-500.0,0.00015128,2]
[400750384,1767813040384,-500.0,0.00015128,2]
[400750386,1767813040393,-500.0,0.00015128,2]
[400750388,1767813040402,-500.0,0.00015128,2]
[400750390,1767813040415,-500.0,0.00015128,2]
[400750392,1767813040425,-500.0,0.00015128,2]
[400750393,1767813040434,-500.0,0.00015128,2]
[400750395,1767813040444,-500.0,0.00015128,2]
[400750397,1767813040455,-610.85,0.00015128,2]
[400750399,1767813040464,-610.85,0.00015128,2]
[400750401,1767813040473,-610.85,0.00015128,2]
[400750403,1767813040484,-500.0,0.00015128,2]
[400750405,1767813040495,-500.0,0.00015128,2]
[400750407,1767813040504,-500.0,0.00015128,2]
[400750409,1767813040513,-500.0,0.00015128,2]
[400750411,1767813040523,-500.0,0.00015128,2]
[400750414,1767813040532,-500.0,0.00015128,2]
[400750416,1767813040542,-1280.0,0.00015128,2]
[400750418,1767813040551,-716.0,0.00015128,2]
[400750420,1767813040559,-500.0,0.00015128,2]
[400750422,1767813040568,-500.0,0.00015128,2]
[400750424,1767813040578,-500.0,0.00015128,2]
[400750426,1767813040587,-1276.99,0.00015129,2]
[400750428,1767813040596,-18612.76681066,0.00015139,2]
[400750430,1767813040605,-5242.62929073,0.00015147,2]
[400750432,1767813040615,-500.0,0.00015178,2]
[400750434,1767813040624,-1280.0,0.00015183,2]
[400750436,1767813040633,-716.0,0.00015183,2]
[400750438,1767813040642,-500.0,0.00015183,2]
[400750440,1767813040651,-500.0,0.00015183,2]
[400750442,1767813040661,-500.0,0.00015183,2]
[400750444,1767813040670,-1508.93,0.00015183,2]
[400750446,1767813040679,-532.0,0.00015205,2]
[400750447,1767813040688,-500.0,0.00015232,2]
[400750449,1767813040698,-500.0,0.00015233,2]
[400750451,1767813040707,-1280.0,0.00015238,2]
[400750453,1767813040716,-716.0,0.00015238,2]
[400750455,1767813040725,-500.0,0.00015238,2]
[400750457,1767813040735,-500.0,0.00015238,2]
[400750459,1767813040744,-500.0,0.00015238,2]
[400750461,1767813040753,-500.0,0.00015287,2]
[400750463,1767813040763,-1280.0,0.00015293,2]
[400750465,1767813040772,-716.0,0.00015293,2]
[400750467,1767813040780,-500.0,0.00015293,2]
[400750469,1767813040789,-500.0,0.00015293,2]
[400750471,1767813040799,-500.0,0.00015293,2]
[400750473,1767813040809,-200.0,0.000153,2]
[400750475,1767813040818,-500.0,0.00015328,2]
[400750477,1767813040826,-200.0,0.00015328,2]
[400750479,1767813040835,-521.47480439,0.00015342,2]
[400750481,1767813040844,-1280.0,0.00015347,2]
[400750483,1767813040853,-716.0,0.00015347,2]
[400750485,1767813040862,-521.79963653,0.00015347,2]
[400750487,1767813040872,-417.0,0.00015347,2]
[400750489,1767813040881,-500.0,0.00015347,2]
[400750491,1767813040890,-151.0,0.00015356,2]
[400750493,1767813040900,-151.0,0.00015356,2]
[400750494,1767813040910,-787.35487633,0.00015362,2]
[400750495,1767813040921,-1177.31804481,0.00015364,2]
[400750496,1767813040931,-200.0,0.000154,2]
[400750497,1767813040941,-1280.0,0.00015402,2]
[400750498,1767813040950,-716.0,0.00015402,2]
[400750499,1767813040959,-500.0,0.00015402,2]
[400750500,1767813040968,-231.0,0.00015425,2]
[400750501,1767813040977,-403.4,0.00015435,2]
[400750502,1767813040987,-811.73,0.00015452,2]
[400750503,1767813040997,-200.0,0.00015453,2]
[400750504,1767813041007,-1280.0,0.00015457,2]
[400750505,1767813041016,-716.0,0.00015457,2]
[400750506,1767813041025,-200.0,0.00015457,2]
[400750507,1767813041034,-1508.93,0.00015457,2]
[400750508,1767813041043,-1000.0,0.00015502,2]
[400750509,1767813041053,-500.0,0.00015507,2]
[400750510,1767813041062,-1280.0,0.00015512,2]
[400750511,1767813041072,-716.0,0.00015512,2]
[400750513,1767813041081,-255.0,0.00015533,2]
[400750514,1767813041090,-18612.76681066,0.00015533,2]
[400750516,1767813041100,-200.0,0.00015554,2]
[400750518,1767813041109,-5305.18,0.00015564,2]
[400750520,1767813041119,-1280.0,0.00015567,2]
[400750522,1767813041128,-716.0,0.00015567,2]
[400750524,1767813041137,-200.0,0.00015608,2]
[400750526,1767813041146,-1000.0,0.00015621,2]
[400750528,1767813041156,-821.82288534,0.00015621,2]
[400750530,1767813041165,-1000.0,0.00015621,2]
[400750532,1767813041174,-1000.0,0.00015621,2]
[400750534,1767813041183,-1000.0,0.00015621,2]
[400750536,1767813041192,-1000.0,0.00015621,2]
[400750538,1767813041201,-1000.0,0.00015621,2]
[400750540,1767813041210,-501.43294385,0.00015621,2]
[400750542,1767813041219,-1000.0,0.00015621,2]
[400750544,1767813041228,-564.80231149,0.00015621,2]
[400750546,1767813041237,-911.91622264,0.00015621,2]
[400750548,1767813041246,-1000.0,0.00015621,2]
[400750550,1767813041255,-1000.0,0.00015621,2]
[400750552,1767813041264,-1000.0,0.00015621,2]
[400750554,1767813041273,-1000.0,0.00015621,2]
[400750555,1767813041283,-1000.0,0.00015621,2]
[400750557,1767813041292,-811.64161933,0.00015621,2]
[400750559,1767813041301,-1000.0,0.00015621,2]
[400750561,1767813041310,-519.44971303,0.00015621,2]
[400750563,1767813041319,-1000.0,0.00015621,2]
[400750565,1767813041328,-1000.0,0.00015621,2]
[400750567,1767813041338,-1000.0,0.00015621,2]
[400750569,1767813041347,-1000.0,0.00015621,2]
[400750571,1767813041356,-1000.0,0.00015621,2]
[400750573,1767813041365,-500.0,0.00015621,2]
[400750575,1767813041374,-1000.0,0.00015621,2]
[400750577,1767813041384,-1000.0,0.00015621,2]
[400750579,1767813041393,-1280.0,0.00015621,2]
[400750581,1767813041407,-716.0,0.00015621,2]
[400750583,1767813041417,-1744.72667082,0.00015644,2]
[400750585,1767813041427,-1280.0,0.00015676,2]
[400750587,1767813041436,-716.0,0.00015676,2]
[400750589,1767813041446,-305.69773206,0.00015699,2]
[400750591,1767813041456,-500.0,0.00015699,2]
[400750593,1767813041465,-500.0,0.00015699,2]
[400750595,1767813041475,-200.0,0.0001571,2]
[400750597,1767813041484,-420.0,0.00015715,2]
[400750598,1767813041493,-420.0,0.00015715,2]
[400750600,1767813041502,-1280.0,0.00015731,2]
[400750602,1767813041511,-716.0,0.00015731,2]
[400750604,1767813041521,-1508.93,0.00015731,2]
[400750606,1767813041530,-200.0,0.00015764,2]
[400750608,1767813041538,-522.46913605,0.00015781,2]
[400750610,1767813041547,-250.0,0.00015784,2]
[400750612,1767813041557,-195.0,0.00015784,2]
[400750614,1767813041566,-5000.0,0.00015784,2]
[400750616,1767813041575,-300.0,0.00015784,2]
[400750618,1767813041584,-1680.0,0.00015784,2]
[400750620,1767813041593,-1280.0,0.00015786,2]
[400750622,1767813041602,-716.0,0.00015786,2]
[400750624,1767813041612,-1280.0,0.0001584,2]
[400750626,1767813041621,-716.0,0.0001584,2]
[400750628,1767813041631,-1276.99,0.00015849,2]
[400750630,1767813041640,-195.0,0.00015851,2]
[400750632,1767813041649,-300.0,0.00015851,2]
[400750634,1767813041659,-195.0,0.00015852,2]
[400750636,1767813041667,-5000.0,0.00015852,2]
[400750638,1767813041677,-2500.0,0.00015852,2]
[400750640,1767813041686,-195.0,0.00015852,2]
[400750642,1767813041695,-200.0,0.00015867,2]
[400750643,1767813041704,-1177.31804481,0.00015871,2]
[400750646,1767813041716,-609.83029456,0.00015876,2]
[400750648,1767813041726,-227.62898952,0.00015876,2]
[400750649,1767813041735,-1286.2212164,0.00015895,2]
[400750651,1767813041744,-731.1858208,0.00015895,2]
[400750653,1767813041753,-3383.33666527,0.000159,2]
[400750655,1767813041762,-3383.33666527,0.000159,2]
[400750657,1767813041771,-3383.33666527,0.000159,2]
[400750659,1767813041781,-3383.33666527,0.000159,2]
[400750661,1767813041790,-1000.0,0.00015918,2]
[400750663,1767813041799,-200.0,0.00015921,2]
[400750665,1767813041808,-18612.76681066,0.00015928,2]
[400750667,1767813041818,-787.35487633,0.00015997,2]
[400750669,1767813041827,-500.0,0.00015999,2]
[400750671,1767813041835,-500.0,0.00015999,2]
[400750672,1767813041844,-508.99338834,0.00015999,2]
[400750674,1767813041853,-610.85,0.00015999,2]
[400750676,1767813041862,-500.0,0.00015999,2]
[400750678,1767813041871,-500.0,0.00015999,2]
[400750680,1767813041880,-1508.93,0.00016005,2]
[400750682,1767813041889,-200.0,0.00016025,2]
[400750684,1767813041898,-500.0,0.00016099,2]
[400750686,1767813041908,-9999.99,0.00016116,2]
[400750688,1767813041917,-257.16378022,0.00016168,2]
[400750690,1767813041927,-529.13192156,0.00016168,2]
[400750692,1767813041936,-556.0741427,0.00016168,2]
[400750694,1767813041945,-449.69083076,0.00016168,2]
[400750696,1767813041956,-1000.0,0.00016168,2]
[400750698,1767813041965,-1500.0,0.00016168,2]
[400750700,1767813041975,-1009.86932533,0.00016168,2]
[400750702,1767813041984,-1500.0,0.00016168,2]
[400750704,1767813041993,-1500.0,0.00016168,2]
[400750706,1767813042002,-1500.0,0.00016168,2]
[400750708,1767813042011,-1500.0,0.00016168,2]
[400750710,1767813042021,-1404.26004105,0.00016168,2]
[400750712,1767813042030,-413.08976684,0.00016168,2]
[400750714,1767813042040,-1500.0,0.00016168,2]
[400750716,1767813042049,-1628.37348131,0.00016168,2]
[400750718,1767813042058,-1000.73448024,0.00016168,2]
[400750720,1767813042067,-1500.0,0.00016168,2]
[400750722,1767813042076,-1500.0,0.00016168,2]
[400750724,1767813042085,-1500.0,0.00016168,2]
[400750726,1767813042095,-448.72451731,0.00016192,2]
[400750727,1767813042105,-578.20924308,0.00016192,2]
[400750729,1767813042114,-1500.0,0.00016192,2]
[400750731,1767813042124,-500.0,0.00016192,2]
[400750733,1767813042133,-1500.0,0.00016192,2]
[400750735,1767813042142,-500.0,0.00016192,2]
[400750737,1767813042151,-1500.0,0.00016192,2]
[400750739,1767813042160,-500.0,0.00016192,2]
[400750742,1767813042172,-1500.0,0.00016192,2]
[400750744,1767813042182,-500.0,0.00016192,2]
[400750745,1767813042191,-500.0,0.00016192,2]
[400750747,1767813042200,-500.0,0.00016192,2]
[400750749,1767813042209,-1500.0,0.00016192,2]
[400750751,1767813042218,-500.0,0.00016192,2]
[400750753,1767813042228,-500.0,0.00016192,2]
[400750755,1767813042237,-1500.0,0.00016192,2]
[400750757,1767813042246,-500.0,0.00016192,2]
[400750759,1767813042256,-500.0,0.00016192,2]
[400750761,1767813042265,-500.0,0.00016192,2]
[400750763,1767813042274,-1500.0,0.00016192,2]
[400750765,1767813042283,-500.0,0.00016192,2]
[400750767,1767813042292,-500.0,0.00016192,2]
[400750769,1767813042302,-322.6107,0.00016192,2]
[400750771,1767813042312,-500.0,0.00016192,2]
[400750773,1767813042321,-1500.0,0.00016192,2]
[400750775,1767813042330,-500.0,0.00016192,2]
[400750777,1767813042340,-500.0,0.00016192,2]
[400750779,1767813042350,-500.0,0.00016192,2]
[400750781,1767813042359,-500.0,0.00016192,2]
[400750783,1767813042368,-500.0,0.00016192,2]
[400750785,1767813042378,-1500.0,0.00016192,2]
[400750787,1767813042387,-500.0,0.00016192,2]
[400750789,1767813042397,-500.0,0.00016192,2]
[400750790,1767813042413,-500.0,0.00016192,2]
[400750792,1767813042422,-1500.0,0.00016192,2]
[400750794,1767813042432,-500.0,0.00016192,2]
[400750795,1767813042442,-500.0,0.00016192,2]
[400750797,1767813042454,-500.0,0.00016192,2]
[400750799,1767813042463,-1500.0,0.00016192,2]
[400750801,1767813042473,-500.0,0.00016192,2]
[400750802,1767813042482,-500.0,0.00016192,2]
[400750804,1767813042492,-500.0,0.00016192,2]
[400750806,1767813042501,-500.0,0.00016192,2]
[400750807,1767813042511,-500.0,0.00016192,2]
[400750809,1767813042520,-500.0,0.00016192,2]
[400750811,1767813042530,-500.0,0.00016192,2]
[400750812,1767813042540,-500.0,0.00016192,2]
[400750814,1767813042550,-200.0,0.00016192,2]
[400750815,1767813042558,-207.4,0.00016192,2]
[400750817,1767813042568,-215.0738,0.00016192,2]
[400750819,1767813042578,-223.0315306,0.00016192,2]
[400750821,1767813042587,-231.28369723,0.00016192,2]
[400750822,1767813042596,-239.84119403,0.00016192,2]
[400750824,1767813042605,-248.71531821,0.00016192,2]
[400750826,1767813042614,-257.91778498,0.00016192,2]
[400750827,1767813042624,-620.0,0.00016192,2]
[400750829,1767813042633,-267.46074303,0.00016192,2]
[400750831,1767813042643,-277.35679052,0.00016192,2]
[400750832,1767813042652,-151.55763012,0.00016192,2]
[400750834,1767813042663,-2000.0,0.00016192,2]
[400750836,1767813042672,-633.50600033,0.00016192,2]
[400750838,1767813042681,-574.12855637,0.00016192,2]
[400750839,1767813042690,-250.0,0.00016192,2]
[400750841,1767813042699,-250.0,0.00016192,2]
[400750843,1767813042708,-403.4,0.00016207,2]
[400750844,1767813042717,-1744.72667082,0.00016208,2]
[400750846,1767813042726,-545.46,0.00016223,2]
[400750848,1767813042736,-7264.9284558,0.00016245,2]
[400750850,1767813042745,-1508.93,0.00016279,2]
[400750851,1767813042754,-634.2954026,0.00016295,2]
[400750853,1767813042763,-18612.76681066,0.00016322,2]
[400750855,1767813042772,-500.0,0.00016356,2]
[400750856,1767813042782,-1177.31804481,0.00016379,2]
[400750858,1767813042791,-151.0,0.00016435,2]
[400750860,1767813042800,-500.0,0.00016437,2]
[400750862,1767813042810,-500.0,0.00016437,2]
[400750864,1767813042819,-610.85,0.00016437,2]
[400750865,1767813042828,-419.33594592,0.00016437,2]
[400750867,1767813042837,-500.0,0.00016438,2]
[400750869,1767813042846,-800.0,0.00016438,2]
[400750871,1767813042855,-857.95,0.00016438,2]
[400750872,1767813042864,-500.0,0.00016472,2]
[400750874,1767813042874,-500.0,0.00016472,2]
[400750876,1767813042884,-500.0,0.00016493,2]
[400750878,1767813042893,-455.32396504,0.00016498,2]
[400750879,1767813042903,-1000.0,0.00016515,2]
[400750881,1767813042913,-500.0,0.00016548,2]
[400750883,1767813042922,-1508.93,0.00016553,2]
[400750885,1767813042934,-1276.99,0.0001657,2]
[400750887,1767813042943,-188.33554362,0.00016602,2]
[400750888,1767813042952,-787.35487633,0.00016631,2]